[Event "Titled Tuesday Blitz November 15 Early 2022"]
[White "Winkels, Marcel"]
[Black "Chernov, Mikhail"]
[WhiteFideId "1003887"]
[BlackFideId "24143170"]
[WhiteElo "1900"]
[BlackElo "2113"]
[Result "0-1"]
[Round "04"]
[TimeControl "180+1"]
[Date "2022.11.16"]
[WhiteClock "0:00:04"]
[BlackClock "0:00:11"]

1. d4 {[%clk 0:03:00]}  d5 {[%clk 0:02:49]} 2. Nc3 {[%clk 0:02:59]}  Nf6 {[%clk 0:02:47]} 3. Bf4 {[%clk 0:03:00]}  c6 {[%clk 0:02:39]} 4. e3 {[%clk 0:02:59]}  Bf5 {[%clk 0:02:20]} 5. f3 {[%clk 0:02:58]}  h6 {[%clk 0:02:16]} 6. g4 {[%clk 0:02:56]}  Bh7 {[%clk 0:02:16]} 7. Qd2 {[%clk 0:02:55]}  Nbd7 {[%clk 0:02:10]} 8. O-O-O {[%clk 0:02:53]}  e6 {[%clk 0:02:09]} 9. h4 {[%clk 0:02:50]}  Qa5 {[%clk 0:02:06]} 10. Kb1 {[%clk 0:02:32]}  b5 {[%clk 0:02:05]} 11. Nxd5 {[%clk 0:02:26]}  Qxd2 {[%clk 0:01:51]} 12. Nxf6+ {[%clk 0:02:05]}  Nxf6 {[%clk 0:01:49]} 13. Rxd2 {[%clk 0:02:06]}  Nd5 {[%clk 0:01:49]} 14. Ne2 {[%clk 0:01:59]}  g5 {[%clk 0:01:46]} 15. Be5 {[%clk 0:01:41]}  f6 {[%clk 0:01:43]} 16. e4 {[%clk 0:01:41]}  fxe5 {[%clk 0:01:37]} 17. exd5 {[%clk 0:01:40]}  cxd5 {[%clk 0:01:29]} 18. dxe5 {[%clk 0:01:39]}  Bb4 {[%clk 0:01:25]} 19. Rd1 {[%clk 0:01:28]}  Rc8 {[%clk 0:01:25]} 20. Nd4 {[%clk 0:01:27]}  Ke7 {[%clk 0:01:24]} 21. Bd3 {[%clk 0:01:25]}  Bxd3 {[%clk 0:01:10]} 22. Rxd3 {[%clk 0:01:22]}  a6 {[%clk 0:01:10]} 23. c3 {[%clk 0:01:17]}  Bc5 {[%clk 0:01:09]} 24. Rd2 {[%clk 0:01:12]}  Rcf8 {[%clk 0:01:00]} 25. hxg5 {[%clk 0:01:08]}  hxg5 {[%clk 0:01:01]} 26. Rxh8 {[%clk 0:01:07]}  Rxh8 {[%clk 0:01:01]} 27. Rf2 {[%clk 0:01:02]}  Rh1+ {[%clk 0:00:58]} 28. Kc2 {[%clk 0:01:00]}  Re1 {[%clk 0:00:59]} 29. Kd2 {[%clk 0:00:57]}  Rb1 {[%clk 0:00:51]} 30. Kc2 {[%clk 0:00:56]}  Re1 {[%clk 0:00:48]} 31. f4 {[%clk 0:00:55]}  Re4 {[%clk 0:00:37]} 32. f5 {[%clk 0:00:47]}  Bxd4 {[%clk 0:00:34]} 33. f6+ {[%clk 0:00:46]}  Kf7 {[%clk 0:00:34]} 34. cxd4 {[%clk 0:00:45]}  Rxd4 {[%clk 0:00:35]} 35. Rh2 {[%clk 0:00:41]}  Re4 {[%clk 0:00:29]} 36. Rh7+ {[%clk 0:00:41]}  Kf8 {[%clk 0:00:29]} 37. Ra7 {[%clk 0:00:37]}  Rxe5 {[%clk 0:00:28]} 38. Rxa6 {[%clk 0:00:36]}  Kf7 {[%clk 0:00:29]} 39. Rb6 {[%clk 0:00:35]}  Re4 {[%clk 0:00:23]} 40. Rxb5 {[%clk 0:00:33]}  Kxf6 {[%clk 0:00:23]} 41. b3 {[%clk 0:00:31]}  d4 {[%clk 0:00:22]} 42. a4 {[%clk 0:00:31]}  e5 {[%clk 0:00:22]} 43. a5 {[%clk 0:00:26]}  Re2+ {[%clk 0:00:22]} 44. Kd3 {[%clk 0:00:25]}  Re3+ {[%clk 0:00:22]} 45. Kd2 {[%clk 0:00:23]}  Rg3 {[%clk 0:00:18]} 46. a6 {[%clk 0:00:22]}  Rg2+ {[%clk 0:00:18]} 47. Kd3 {[%clk 0:00:21]}  Ra2 {[%clk 0:00:15]} 48. Rb6+ {[%clk 0:00:21]}  Ke7 {[%clk 0:00:15]} 49. b4 {[%clk 0:00:21]}  Ra3+ {[%clk 0:00:15]} 50. Ke4 {[%clk 0:00:20]}  Re3+ {[%clk 0:00:15]} 51. Kd5 {[%clk 0:00:16]}  Ra3 {[%clk 0:00:13]} 52. b5 {[%clk 0:00:15]}  d3 {[%clk 0:00:13]} 53. Kxe5 {[%clk 0:00:14]}  Ra5 {[%clk 0:00:11]} 54. Rb7+ {[%clk 0:00:06]}  Kd8 {[%clk 0:00:12]} 55. a7 {[%clk 0:00:06]}  d2 {[%clk 0:00:10]} 56. Rb8+ {[%clk 0:00:04]}  Kc7 {[%clk 0:00:10]} 57. a8=Q {[%clk 0:00:03]}  Rxa8 {[%clk 0:00:10]} 58. Rxa8 {[%clk 0:00:04]}  d1=Q {[%clk 0:00:11]} 0-1


[Site "https://www.chess.com"]

[Event "Titled Tuesday Blitz November 15 Early 2022"]
[White "Winterberg, Lukas"]
[Black "Matinian, Nikita"]
[WhiteFideId "24622702"]
[BlackFideId "24129100"]
[WhiteElo "2349"]
[BlackElo "2422"]
[Result "1-0"]
[Round "04"]
[TimeControl "180+1"]
[Date "2022.11.16"]
[WhiteClock "0:00:43"]
[BlackClock "0:00:16"]

1. d4 {[%clk 0:03:00]}  Nf6 {[%clk 0:03:00]} 2. Nf3 {[%clk 0:03:01]}  g6 {[%clk 0:03:00]} 3. c4 {[%clk 0:03:01]}  Bg7 {[%clk 0:03:01]} 4. Nc3 {[%clk 0:03:02]}  O-O {[%clk 0:03:01]} 5. e4 {[%clk 0:03:02]}  d6 {[%clk 0:03:02]} 6. Be2 {[%clk 0:03:03]}  e5 {[%clk 0:03:02]} 7. O-O {[%clk 0:03:03]}  h6 {[%clk 0:03:02]} 8. Qc2 {[%clk 0:02:54]}  Nc6 {[%clk 0:03:02]} 9. dxe5 {[%clk 0:02:47]}  dxe5 {[%clk 0:03:01]} 10. Rd1 {[%clk 0:02:46]}  Nd4 {[%clk 0:02:59]} 11. Nxd4 {[%clk 0:02:40]}  exd4 {[%clk 0:02:59]} 12. Nd5 {[%clk 0:02:40]}  c5 {[%clk 0:02:57]} 13. Rb1 {[%clk 0:02:29]}  Re8 {[%clk 0:02:56]} 14. Bd3 {[%clk 0:02:26]}  a5 {[%clk 0:02:44]} 15. a3 {[%clk 0:02:24]}  Ng4 {[%clk 0:02:37]} 16. f4 {[%clk 0:02:14]}  f5 {[%clk 0:02:31]} 17. e5 {[%clk 0:02:12]}  h5 {[%clk 0:02:11]} 18. b4 {[%clk 0:02:11]}  axb4 {[%clk 0:02:11]} 19. axb4 {[%clk 0:02:12]}  cxb4 {[%clk 0:02:10]} 20. h3 {[%clk 0:02:07]}  Nh6 {[%clk 0:01:57]} 21. Rxb4 {[%clk 0:02:05]}  Nf7 {[%clk 0:01:56]} 22. Bb2 {[%clk 0:01:56]}  Be6 {[%clk 0:01:21]} 23. Rb5 {[%clk 0:01:43]}  Rc8 {[%clk 0:01:07]} 24. Qb3 {[%clk 0:01:41]}  Qh4 {[%clk 0:00:59]} 25. Rf1 {[%clk 0:01:25]}  Qg3 {[%clk 0:00:48]} 26. Bxd4 {[%clk 0:01:13]}  Nd6 {[%clk 0:00:35]} 27. Bf2 {[%clk 0:01:04]}  Qxf2+ {[%clk 0:00:30]} 28. Rxf2 {[%clk 0:01:03]}  Nxb5 {[%clk 0:00:31]} 29. Qxb5 {[%clk 0:01:03]}  Bf8 {[%clk 0:00:27]} 30. Nf6+ {[%clk 0:01:02]}  Kf7 {[%clk 0:00:28]} 31. Nxe8 {[%clk 0:01:00]}  Rxe8 {[%clk 0:00:29]} 32. Qxb7+ {[%clk 0:00:59]}  Re7 {[%clk 0:00:29]} 33. Qb5 {[%clk 0:00:57]}  Rc7 {[%clk 0:00:29]} 34. Ra2 {[%clk 0:00:55]}  Bc5+ {[%clk 0:00:29]} 35. Kh2 {[%clk 0:00:55]}  Be3 {[%clk 0:00:29]} 36. Ra8 {[%clk 0:00:45]}  Bxf4+ {[%clk 0:00:29]} 37. g3 {[%clk 0:00:45]}  Bd7 {[%clk 0:00:16]} 38. e6+ {[%clk 0:00:43]} 1-0


[Site "https://www.chess.com"]

[Event "Titled Tuesday Blitz November 15 Early 2022"]
[White "Xiong, Jeffery"]
[Black "Krzyzanowski, Marcin"]
[WhiteFideId "2047640"]
[BlackFideId "1132199"]
[WhiteElo "2725"]
[BlackElo "2435"]
[Result "0-1"]
[Round "04"]
[TimeControl "180+1"]
[Date "2022.11.15"]
[WhiteClock "0:00:15"]
[BlackClock "0:00:36"]

1. e4 {[%clk 0:03:00]}  d6 {[%clk 0:02:58]} 2. d4 {[%clk 0:02:56]}  Nf6 {[%clk 0:02:58]} 3. Nc3 {[%clk 0:02:57]}  c6 {[%clk 0:02:59]} 4. Nf3 {[%clk 0:02:53]}  g6 {[%clk 0:02:59]} 5. Be3 {[%clk 0:02:52]}  Bg7 {[%clk 0:02:59]} 6. Qd2 {[%clk 0:02:53]}  h6 {[%clk 0:02:56]} 7. Bd3 {[%clk 0:02:53]}  b5 {[%clk 0:02:52]} 8. h3 {[%clk 0:02:52]}  Bb7 {[%clk 0:02:46]} 9. a4 {[%clk 0:02:52]}  b4 {[%clk 0:02:46]} 10. Ne2 {[%clk 0:02:52]}  a5 {[%clk 0:02:41]} 11. c3 {[%clk 0:02:52]}  Na6 {[%clk 0:02:27]} 12. O-O {[%clk 0:02:51]}  c5 {[%clk 0:02:11]} 13. Ng3 {[%clk 0:02:47]}  bxc3 {[%clk 0:02:04]} 14. bxc3 {[%clk 0:02:47]}  cxd4 {[%clk 0:02:04]} 15. cxd4 {[%clk 0:02:48]}  Nb4 {[%clk 0:02:04]} 16. Bb5+ {[%clk 0:02:48]}  Kf8 {[%clk 0:02:04]} 17. d5 {[%clk 0:02:45]}  Rc8 {[%clk 0:01:59]} 18. Rac1 {[%clk 0:02:44]}  Nd7 {[%clk 0:01:56]} 19. Nd4 {[%clk 0:02:40]}  Nc5 {[%clk 0:01:54]} 20. f4 {[%clk 0:02:32]}  Kg8 {[%clk 0:01:42]} 21. Kh1 {[%clk 0:02:24]}  Kh7 {[%clk 0:01:41]} 22. f5 {[%clk 0:01:49]}  g5 {[%clk 0:01:35]} 23. f6 {[%clk 0:01:49]}  Bxf6 {[%clk 0:01:34]} 24. Rxf6 {[%clk 0:01:49]}  exf6 {[%clk 0:01:35]} 25. Rf1 {[%clk 0:01:49]}  Rc7 {[%clk 0:01:23]} 26. Qe2 {[%clk 0:01:49]}  Bc8 {[%clk 0:01:20]} 27. Qh5 {[%clk 0:01:49]}  Rg8 {[%clk 0:01:18]} 28. Qf3 {[%clk 0:01:07]}  Rg6 {[%clk 0:01:18]} 29. Nh5 {[%clk 0:01:07]}  Qe7 {[%clk 0:01:15]} 30. Ng3 {[%clk 0:00:50]}  g4 {[%clk 0:01:12]} 31. hxg4 {[%clk 0:00:45]}  Bxg4 {[%clk 0:01:13]} 32. Qf4 {[%clk 0:00:42]}  Nbd3 {[%clk 0:01:13]} 33. Bxd3 {[%clk 0:00:30]}  Nxd3 {[%clk 0:01:14]} 34. Ngf5 {[%clk 0:00:30]}  Qe5 {[%clk 0:00:58]} 35. Qxe5 {[%clk 0:00:29]}  fxe5 {[%clk 0:00:58]} 36. Nc6 {[%clk 0:00:30]}  Bxf5 {[%clk 0:00:53]} 37. Rxf5 {[%clk 0:00:29]}  Rb7 {[%clk 0:00:52]} 38. Nxa5 {[%clk 0:00:16]}  Rb1+ {[%clk 0:00:50]} 39. Kh2 {[%clk 0:00:16]}  Rb2 {[%clk 0:00:51]} 40. Rxf7+ {[%clk 0:00:17]}  Kg8 {[%clk 0:00:51]} 41. Rf3 {[%clk 0:00:17]}  Rgxg2+ {[%clk 0:00:51]} 42. Kh3 {[%clk 0:00:18]}  Rh2+ {[%clk 0:00:51]} 43. Kg4 {[%clk 0:00:18]}  Rbg2+ {[%clk 0:00:48]} 44. Rg3 {[%clk 0:00:15]}  h5+ {[%clk 0:00:36]} 0-1


[Site "https://www.chess.com"]

[Event "Titled Tuesday Blitz November 15 Early 2022"]
[White "parintele_chess"]
[Black "Avila Rodriguez, Joshua Ad"]
[BlackFideId "5126444"]
[WhiteElo "2220"]
[BlackElo "2125"]
[Result "0-1"]
[Round "04"]
[TimeControl "180+1"]
[Date "2022.11.16"]
[WhiteClock "0:00:01"]
[BlackClock "0:01:24"]

1. d4 {[%clk 0:02:59]}  Nf6 {[%clk 0:02:59]} 2. Bf4 {[%clk 0:02:59]}  d5 {[%clk 0:02:59]} 3. Nf3 {[%clk 0:02:59]}  c5 {[%clk 0:03:00]} 4. e3 {[%clk 0:02:59]}  Nc6 {[%clk 0:03:00]} 5. Nbd2 {[%clk 0:02:59]}  cxd4 {[%clk 0:02:58]} 6. exd4 {[%clk 0:02:59]}  Bf5 {[%clk 0:02:56]} 7. c3 {[%clk 0:02:56]}  e6 {[%clk 0:02:56]} 8. Bb5 {[%clk 0:02:52]}  Bd6 {[%clk 0:02:56]} 9. Ne5 {[%clk 0:02:52]}  Rc8 {[%clk 0:02:55]} 10. Qa4 {[%clk 0:02:44]}  O-O {[%clk 0:02:37]} 11. Bxc6 {[%clk 0:02:38]}  bxc6 {[%clk 0:02:37]} 12. Qxa7 {[%clk 0:02:36]}  Nh5 {[%clk 0:02:14]} 13. Bg3 {[%clk 0:02:15]}  Nxg3 {[%clk 0:01:53]} 14. hxg3 {[%clk 0:02:16]}  Ra8 {[%clk 0:01:52]} 15. Qb7 {[%clk 0:02:01]}  Bxe5 {[%clk 0:01:52]} 16. dxe5 {[%clk 0:02:00]}  Rb8 {[%clk 0:01:53]} 17. Qxc6 {[%clk 0:01:55]}  Rxb2 {[%clk 0:01:53]} 18. Qa6 {[%clk 0:00:41]}  Qc7 {[%clk 0:01:44]} 19. Rc1 {[%clk 0:00:22]}  Qc5 {[%clk 0:01:40]} 20. Qe2 {[%clk 0:00:12]}  Ra8 {[%clk 0:01:36]} 21. g4 {[%clk 0:00:10]}  Bg6 {[%clk 0:01:32]} 22. f4 {[%clk 0:00:03]}  Raxa2 {[%clk 0:01:32]} 23. Rd1 {[%clk 0:00:02]}  Bc2 {[%clk 0:01:26]} 24. f5 {[%clk 0:00:01]}  Bxd1 {[%clk 0:01:24]} 0-1


[Site "https://www.chess.com"]

[Event "Titled Tuesday Blitz November 15 Early 2022"]
[White "Abhishek, Das"]
[Black "Papayan, Oleg"]
[WhiteFideId "5013348"]
[BlackFideId "4193911"]
[WhiteElo "2230"]
[BlackElo "2153"]
[Result "0-1"]
[Round "05"]
[TimeControl "180+1"]
[Date "2022.11.16"]
[WhiteClock "0:01:29"]
[BlackClock "0:02:40"]

1. e4 {[%clk 0:02:53]}  c5 {[%clk 0:03:00]} 2. Nc3 {[%clk 0:02:47]}  d6 {[%clk 0:03:00]} 3. Bb5+ {[%clk 0:02:46]}  Nd7 {[%clk 0:02:59]} 4. a4 {[%clk 0:02:41]}  Nf6 {[%clk 0:03:00]} 5. f4 {[%clk 0:02:40]}  e6 {[%clk 0:02:59]} 6. Nf3 {[%clk 0:02:39]}  Be7 {[%clk 0:03:00]} 7. O-O {[%clk 0:02:35]}  O-O {[%clk 0:03:01]} 8. d3 {[%clk 0:02:35]}  a6 {[%clk 0:03:00]} 9. Bc4 {[%clk 0:02:33]}  b6 {[%clk 0:02:59]} 10. e5 {[%clk 0:02:31]}  Ne8 {[%clk 0:02:58]} 11. exd6 {[%clk 0:02:27]}  Nxd6 {[%clk 0:02:59]} 12. Ne4 {[%clk 0:02:25]}  Nxc4 {[%clk 0:02:58]} 13. dxc4 {[%clk 0:02:24]}  Bb7 {[%clk 0:02:59]} 14. Qe2 {[%clk 0:02:23]}  Nf6 {[%clk 0:02:58]} 15. Nc3 {[%clk 0:02:18]}  Qc7 {[%clk 0:02:57]} 16. b3 {[%clk 0:02:07]}  Rad8 {[%clk 0:02:57]} 17. Bb2 {[%clk 0:02:06]}  Qxf4 {[%clk 0:02:51]} 18. Nd5 {[%clk 0:01:41]}  Bxd5 {[%clk 0:02:44]} 19. cxd5 {[%clk 0:01:39]}  Nxd5 {[%clk 0:02:42]} 20. Ne5 {[%clk 0:01:35]}  Qe3+ {[%clk 0:02:42]} 21. Qxe3 {[%clk 0:01:28]}  Nxe3 {[%clk 0:02:42]} 22. Rf2 {[%clk 0:01:29]}  Rd1+ {[%clk 0:02:40]} 0-1


[Site "https://www.chess.com"]

[Event "Titled Tuesday Blitz November 15 Early 2022"]
[White "Adithya A Chullikkad"]
[Black "Guimaraes, Wagner Peixoto"]
[WhiteFideId "45078734"]
[BlackFideId "2100940"]
[WhiteElo "2106"]
[BlackElo "2231"]
[Result "1-0"]
[Round "05"]
[TimeControl "180+1"]
[Date "2022.11.16"]
[WhiteClock "0:00:19"]
[BlackClock "0:00:18"]

1. e4 {[%clk 0:02:55]}  c5 {[%clk 0:02:49]} 2. Bc4 {[%clk 0:02:50]}  e6 {[%clk 0:02:47]} 3. Nf3 {[%clk 0:02:50]}  Nc6 {[%clk 0:02:46]} 4. c3 {[%clk 0:02:50]}  a6 {[%clk 0:02:41]} 5. O-O {[%clk 0:02:50]}  b5 {[%clk 0:02:40]} 6. Bd3 {[%clk 0:02:50]}  Bb7 {[%clk 0:02:32]} 7. Bc2 {[%clk 0:02:49]}  d6 {[%clk 0:02:31]} 8. d4 {[%clk 0:02:48]}  cxd4 {[%clk 0:02:30]} 9. Nxd4 {[%clk 0:02:47]}  Nf6 {[%clk 0:02:28]} 10. Nxc6 {[%clk 0:02:45]}  Bxc6 {[%clk 0:02:28]} 11. Re1 {[%clk 0:02:45]}  Qc7 {[%clk 0:02:26]} 12. Bf4 {[%clk 0:02:45]}  Ng4 {[%clk 0:02:17]} 13. Qxg4 {[%clk 0:02:40]}  h5 {[%clk 0:02:07]} 14. Qe2 {[%clk 0:02:32]}  h4 {[%clk 0:01:01]} 15. a4 {[%clk 0:00:51]}  Qb7 {[%clk 0:00:46]} 16. axb5 {[%clk 0:00:49]}  axb5 {[%clk 0:00:47]} 17. Rxa8+ {[%clk 0:00:49]}  Qxa8 {[%clk 0:00:46]} 18. Na3 {[%clk 0:00:49]}  Qb7 {[%clk 0:00:44]} 19. Bd3 {[%clk 0:00:48]}  d5 {[%clk 0:00:36]} 20. Bxb5 {[%clk 0:00:47]}  Bxa3 {[%clk 0:00:33]} 21. Bxc6+ {[%clk 0:00:46]}  Qxc6 {[%clk 0:00:34]} 22. bxa3 {[%clk 0:00:45]}  h3 {[%clk 0:00:30]} 23. a4 {[%clk 0:00:42]}  hxg2 {[%clk 0:00:26]} 24. Qb5 {[%clk 0:00:41]}  Qxb5 {[%clk 0:00:27]} 25. axb5 {[%clk 0:00:40]}  Kd7 {[%clk 0:00:25]} 26. exd5 {[%clk 0:00:40]}  exd5 {[%clk 0:00:24]} 27. Rd1 {[%clk 0:00:13]}  Ke6 {[%clk 0:00:19]} 28. b6 {[%clk 0:00:13]}  Rd8 {[%clk 0:00:15]} 29. b7 {[%clk 0:00:14]}  Kf5 {[%clk 0:00:15]} 30. b8=Q {[%clk 0:00:14]}  Rxb8 {[%clk 0:00:15]} 31. Bxb8 {[%clk 0:00:13]}  Ke4 {[%clk 0:00:16]} 32. Rd4+ {[%clk 0:00:13]}  Kf5 {[%clk 0:00:15]} 33. Rxd5+ {[%clk 0:00:14]}  Ke6 {[%clk 0:00:16]} 34. c4 {[%clk 0:00:14]}  f5 {[%clk 0:00:16]} 35. Rd6+ {[%clk 0:00:15]}  Kf7 {[%clk 0:00:15]} 36. c5 {[%clk 0:00:15]}  g6 {[%clk 0:00:16]} 37. c6 {[%clk 0:00:16]}  f4 {[%clk 0:00:17]} 38. c7 {[%clk 0:00:17]}  f3 {[%clk 0:00:18]} 39. c8=Q {[%clk 0:00:17]}  g5 {[%clk 0:00:18]} 40. Qd7+ {[%clk 0:00:18]}  Kf8 {[%clk 0:00:18]} 41. Qc8+ {[%clk 0:00:18]}  Ke7 {[%clk 0:00:18]} 42. Qc7+ {[%clk 0:00:18]}  Ke8 {[%clk 0:00:18]} 43. Rd8# {[%clk 0:00:19]} 1-0


[Site "https://www.chess.com"]

[Event "Titled Tuesday Blitz November 15 Early 2022"]
[White "Golubova, Anna"]
[Black "Leiva, Gianmarco"]
[WhiteFideId "24173606"]
[BlackFideId "3804399"]
[WhiteElo "2047"]
[BlackElo "2286"]
[Result "1-0"]
[Round "05"]
[TimeControl "180+1"]
[Date "2022.11.16"]
[WhiteClock "0:01:34"]
[BlackClock "0:01:55"]

1. d4 {[%clk 0:02:55]}  Nf6 {[%clk 0:02:55]} 2. Nf3 {[%clk 0:02:55]}  e6 {[%clk 0:02:52]} 3. g3 {[%clk 0:02:56]}  b6 {[%clk 0:02:45]} 4. Bg2 {[%clk 0:02:57]}  Bb7 {[%clk 0:02:46]} 5. O-O {[%clk 0:02:57]}  Be7 {[%clk 0:02:47]} 6. c4 {[%clk 0:02:57]}  O-O {[%clk 0:02:47]} 7. d5 {[%clk 0:02:57]}  exd5 {[%clk 0:02:47]} 8. Nh4 {[%clk 0:02:58]}  c6 {[%clk 0:02:48]} 9. cxd5 {[%clk 0:02:57]}  Nxd5 {[%clk 0:02:48]} 10. Nf5 {[%clk 0:02:58]}  Nc7 {[%clk 0:02:48]} 11. e4 {[%clk 0:02:57]}  d5 {[%clk 0:02:49]} 12. exd5 {[%clk 0:02:56]}  cxd5 {[%clk 0:02:47]} 13. Qg4 {[%clk 0:02:49]}  Ne6 {[%clk 0:02:45]} 14. Re1 {[%clk 0:02:47]}  g6 {[%clk 0:02:34]} 15. Bh6 {[%clk 0:02:37]}  Re8 {[%clk 0:02:18]} 16. Nc3 {[%clk 0:02:36]}  Na6 {[%clk 0:02:12]} 17. Nxe7+ {[%clk 0:02:29]}  Rxe7 {[%clk 0:02:12]} 18. Rad1 {[%clk 0:02:23]}  Nac7 {[%clk 0:02:11]} 19. Re5 {[%clk 0:02:08]}  Re8 {[%clk 0:02:01]} 20. Nxd5 {[%clk 0:01:57]}  Nxd5 {[%clk 0:02:00]} 21. Bxd5 {[%clk 0:01:56]}  Bxd5 {[%clk 0:01:59]} 22. Rexd5 {[%clk 0:01:56]}  Qf6 {[%clk 0:01:58]} 23. b3 {[%clk 0:01:52]}  Rad8 {[%clk 0:01:57]} 24. Rxd8 {[%clk 0:01:44]}  Rxd8 {[%clk 0:01:57]} 25. Rc1 {[%clk 0:01:44]}  g5 {[%clk 0:01:56]} 26. Qh5 {[%clk 0:01:34]}  Qxh6 {[%clk 0:01:55]} 27. Qxh6 {[%clk 0:01:34]} 1-0


[Site "https://www.chess.com"]

[Event "Titled Tuesday Blitz November 15 Early 2022"]
[White "Alekseenko, Kirill"]
[Black "Caruana, Fabiano"]
[WhiteFideId "4135539"]
[BlackFideId "2020009"]
[WhiteElo "2682"]
[BlackElo "2847"]
[Result "1/2-1/2"]
[Round "05"]
[TimeControl "180+1"]
[Date "2022.11.15"]
[WhiteClock "0:00:17"]
[BlackClock "0:00:11"]

1. e4 {[%clk 0:03:00]}  e5 {[%clk 0:02:59]} 2. Nf3 {[%clk 0:03:01]}  Nc6 {[%clk 0:02:59]} 3. Bc4 {[%clk 0:03:01]}  Bc5 {[%clk 0:02:59]} 4. d3 {[%clk 0:03:01]}  Nf6 {[%clk 0:02:59]} 5. Nc3 {[%clk 0:03:01]}  d6 {[%clk 0:02:58]} 6. a4 {[%clk 0:02:54]}  a6 {[%clk 0:02:56]} 7. h3 {[%clk 0:02:54]}  h6 {[%clk 0:02:54]} 8. Be3 {[%clk 0:02:54]}  Bxe3 {[%clk 0:02:50]} 9. fxe3 {[%clk 0:02:54]}  Qe7 {[%clk 0:02:49]} 10. O-O {[%clk 0:02:54]}  Be6 {[%clk 0:02:49]} 11. Nd2 {[%clk 0:02:53]}  Nd8 {[%clk 0:02:38]} 12. Qe2 {[%clk 0:02:44]}  O-O {[%clk 0:02:37]} 13. Rf3 {[%clk 0:02:40]}  c6 {[%clk 0:02:35]} 14. Bxe6 {[%clk 0:02:34]}  Nxe6 {[%clk 0:02:32]} 15. Raf1 {[%clk 0:02:20]}  Nd7 {[%clk 0:02:32]} 16. Rg3 {[%clk 0:02:12]}  b5 {[%clk 0:02:26]} 17. Qh5 {[%clk 0:02:09]}  Kh7 {[%clk 0:02:24]} 18. Rgf3 {[%clk 0:02:05]}  g6 {[%clk 0:02:20]} 19. Qg4 {[%clk 0:02:05]}  Kg7 {[%clk 0:02:14]} 20. axb5 {[%clk 0:01:57]}  axb5 {[%clk 0:02:12]} 21. Ne2 {[%clk 0:01:58]}  Qg5 {[%clk 0:02:09]} 22. Qxg5 {[%clk 0:01:54]}  hxg5 {[%clk 0:02:06]} 23. g4 {[%clk 0:01:46]}  Ra2 {[%clk 0:02:02]} 24. Rb1 {[%clk 0:01:46]}  Rfa8 {[%clk 0:02:01]} 25. Nc3 {[%clk 0:01:47]}  R2a7 {[%clk 0:01:54]} 26. Nb3 {[%clk 0:01:47]}  Nb6 {[%clk 0:01:51]} 27. Rbf1 {[%clk 0:01:45]}  b4 {[%clk 0:01:46]} 28. Ne2 {[%clk 0:01:31]}  Na4 {[%clk 0:01:44]} 29. Rb1 {[%clk 0:01:31]}  Nac5 {[%clk 0:01:43]} 30. Nxc5 {[%clk 0:01:17]}  Nxc5 {[%clk 0:01:41]} 31. b3 {[%clk 0:01:18]}  Ra2 {[%clk 0:01:38]} 32. Rc1 {[%clk 0:01:18]}  Rb2 {[%clk 0:01:22]} 33. Rf2 {[%clk 0:01:10]}  d5 {[%clk 0:01:13]} 34. Rcf1 {[%clk 0:01:00]}  Ra7 {[%clk 0:01:12]} 35. Ng3 {[%clk 0:00:59]}  Ne6 {[%clk 0:01:02]} 36. exd5 {[%clk 0:00:48]}  cxd5 {[%clk 0:01:03]} 37. Rc1 {[%clk 0:00:37]}  Rc7 {[%clk 0:01:00]} 38. Kh2 {[%clk 0:00:34]}  d4 {[%clk 0:00:53]} 39. exd4 {[%clk 0:00:33]}  Nxd4 {[%clk 0:00:54]} 40. Ne4 {[%clk 0:00:33]}  Nxb3 {[%clk 0:00:52]} 41. Rcf1 {[%clk 0:00:26]}  Rcxc2 {[%clk 0:00:50]} 42. Rxc2 {[%clk 0:00:25]}  Rxc2+ {[%clk 0:00:51]} 43. Kg3 {[%clk 0:00:25]}  Nd2 {[%clk 0:00:49]} 44. Re1 {[%clk 0:00:17]}  Nxe4+ {[%clk 0:00:43]} 45. Rxe4 {[%clk 0:00:18]}  b3 {[%clk 0:00:35]} 46. Rxe5 {[%clk 0:00:18]}  Rc3 {[%clk 0:00:35]} 47. Rxg5 {[%clk 0:00:17]}  Rxd3+ {[%clk 0:00:25]} 48. Kg2 {[%clk 0:00:16]}  Kf6 {[%clk 0:00:18]} 49. Rb5 {[%clk 0:00:17]}  g5 {[%clk 0:00:18]} 50. Rf5+ {[%clk 0:00:16]}  Kg6 {[%clk 0:00:17]} 51. Rb5 {[%clk 0:00:17]}  f6 {[%clk 0:00:18]} 52. Rb7 {[%clk 0:00:16]}  Rc3 {[%clk 0:00:18]} 53. Kh2 {[%clk 0:00:16]}  Rc2+ {[%clk 0:00:17]} 54. Kg3 {[%clk 0:00:16]}  b2 {[%clk 0:00:17]} 55. Kf3 {[%clk 0:00:16]}  Rd2 {[%clk 0:00:15]} 56. Kg3 {[%clk 0:00:16]}  Rc2 {[%clk 0:00:16]} 57. Kf3 {[%clk 0:00:17]}  Kh6 {[%clk 0:00:14]} 58. Kg3 {[%clk 0:00:17]}  Rd2 {[%clk 0:00:13]} 59. Kf3 {[%clk 0:00:17]}  Kg6 {[%clk 0:00:11]} 60. Kg3 {[%clk 0:00:17]}  Rc2 {[%clk 0:00:11]} 1/2-1/2


[Site "https://www.chess.com"]

[Event "Titled Tuesday Blitz November 15 Early 2022"]
[White "Alhadad, Mahmoud"]
[Black "Gedgafov, Chamal"]
[WhiteFideId "11501863"]
[BlackFideId "34130621"]
[WhiteElo "1955"]
[BlackElo "2067"]
[Result "0-1"]
[Round "05"]
[TimeControl "180+1"]
[Date "2022.11.16"]
[WhiteClock "0:01:51"]
[BlackClock "0:02:43"]

1. e4 {[%clk 0:02:59]}  e6 {[%clk 0:02:59]} 2. Nc3 {[%clk 0:02:51]}  d5 {[%clk 0:02:58]} 3. Nf3 {[%clk 0:02:51]}  dxe4 {[%clk 0:02:58]} 4. Nxe4 {[%clk 0:02:50]}  Nd7 {[%clk 0:02:59]} 5. d4 {[%clk 0:02:50]}  Ngf6 {[%clk 0:02:58]} 6. Bd3 {[%clk 0:02:49]}  Nxe4 {[%clk 0:02:58]} 7. Bxe4 {[%clk 0:02:50]}  Nf6 {[%clk 0:02:59]} 8. Qe2 {[%clk 0:02:50]}  Nxe4 {[%clk 0:02:58]} 9. Qxe4 {[%clk 0:02:51]}  Qd5 {[%clk 0:02:58]} 10. Qxd5 {[%clk 0:02:50]}  exd5 {[%clk 0:02:59]} 11. Bf4 {[%clk 0:02:49]}  c6 {[%clk 0:02:59]} 12. O-O-O {[%clk 0:02:49]}  f6 {[%clk 0:02:59]} 13. Rhe1+ {[%clk 0:02:48]}  Kf7 {[%clk 0:02:58]} 14. h3 {[%clk 0:02:48]}  h5 {[%clk 0:02:57]} 15. c3 {[%clk 0:02:47]}  g5 {[%clk 0:02:56]} 16. Bg3 {[%clk 0:02:45]}  Bf5 {[%clk 0:02:57]} 17. Kd2 {[%clk 0:02:42]}  h4 {[%clk 0:02:56]} 18. Bh2 {[%clk 0:02:40]}  Bh6 {[%clk 0:02:53]} 19. Ke2 {[%clk 0:02:19]}  Rhe8+ {[%clk 0:02:50]} 20. Kf1 {[%clk 0:02:19]}  Be4 {[%clk 0:02:50]} 21. Nd2 {[%clk 0:02:15]}  Bc2 {[%clk 0:02:48]} 22. Rxe8 {[%clk 0:02:13]}  Rxe8 {[%clk 0:02:46]} 23. Re1 {[%clk 0:02:14]}  Bd3+ {[%clk 0:02:46]} 24. Re2 {[%clk 0:01:51]}  Rxe2 {[%clk 0:02:43]} 0-1


[Site "https://www.chess.com"]